bitfinex-derivatives/quotes_ETHF0:USTF0_20250326
["timestamp","ask_amount","ask_price","bid_price","bid_amount"]
[1743008296591,2.30692361,2014.3,2014.2,1.3201]
[1743008296796,2.30692361,2014.3,2014.2,2.31293]
[1743008296998,2.30692361,2014.3,2014.2,1.3201]
[1743008299296,2.30692361,2014.3,2014.2,2.31293]
[1743008299496,2.30692361,2014.3,2014.2,1.3201]
[1743008299999,2.30692361,2014.3,2014.2,2.31293]
[1743008300300,0.00744361,2014.3,2014.2,2.31293]
[1743008301001,0.00744361,2014.3,2014.2,5.52073]
[1743008301701,2.31871,2014.7,2014.6,0.99263]
[1743008301910,11.51865,2015.2,2014.6,3.2078]
[1743008302198,0.99253,2014.8,2014.7,4.6807]
[1743008302805,0.99253,2014.8,2014.7,5.67328]
[1743008303305,2.3653,2014.9,2014.8,0.99253]
[1743008303599,2.3653,2014.9,2014.8,2.29323]
[1743008305194,2.3653,2014.9,2014.8,1.3007]
[1743008306201,2.3653,2014.9,2014.8,2.29323]
[1743008306505,1.3728,2014.9,2014.8,2.29323]
[1743008307407,2.36528,2014.9,2014.8,2.29323]
[1743008308493,2.36528,2014.9,2014.8,1.3007]
[1743008309505,0.99258,2014.7,2014.6,4.20039]
[1743008309695,0.99258,2014.7,2014.6,4.5253]
[1743008309894,0.99258,2014.7,2014.6,1.3175]
[1743008310096,0.99263,2014.6,2014.5,0.00744361]
[1743008310294,2.30223,2014.6,2014.5,0.00744361]
[1743008312604,2.30223,2014.6,2014.5,1.36904361]
[1743008314208,2.30223,2014.6,2014.5,0.00744361]
[1743008315009,2.30223,2014.6,2014.5,1.43314361]
[1743008315811,2.30223,2014.6,2014.5,0.00744361]
[1743008316409,0.99275,2014.4,2014.3,0.99271]
[1743008317209,0.99276,2014.4,2014.3,0.99276]
[1743008317713,0.9928,2014.3,2014.2,0.99278]
[1743008318913,0.99288,2014.1,2014.0,4.87692]
[1743008319114,0.99288,2014.1,2014.0,3.884]
[1743008319720,2.36538,2014.1,2014.0,3.884]
[1743008320107,1.67056,2014.2,2014.1,0.99288]
[1743008320309,2.36531,2014.3,2014.2,0.99283]
[1743008320509,0.99286,2014.2,2014.1,0.99285]
[1743008321210,0.99288,2014.1,2014.0,4.87689]
[1743008321409,0.99286,2014.2,2014.1,0.99286]
[1743008323019,2.3653,2014.3,2014.2,0.99283]
[1743008323411,0.99285,2014.2,2014.1,0.99284]
[1743008323710,1.3371,2014.5,2014.0,6.36631]
[1743008323905,0.99266,2014.6,2014.5,0.99266]
[1743008324111,2.37896,2014.6,2014.5,0.99266]
[1743008324722,1.427,2014.8,2014.7,0.99258]
[1743008324917,0.7123,2014.8,2014.7,0.99258]
[1743008325116,1.70485,2014.8,2014.7,0.99258]
[1743008325619,0.99255,2014.8,2014.7,0.99258]
[1743008325821,2.37881,2014.9,2014.8,0.99253]
[1743008328021,2.41947,2014.8,2014.7,0.99254]
[1743008328820,1.4269,2014.8,2014.7,0.99254]
[1743008330011,2.41943,2014.8,2014.7,0.99254]
[1743008331225,1.4269,2014.8,2014.7,0.99254]
[1743008331416,0.99251,2014.9,2014.8,0.99253]
[1743008331718,2.35571,2014.9,2014.8,0.99253]
[1743008331912,2.35568,2014.9,2014.8,0.99253]
[1743008332120,3.08920361,2015.0,2014.9,0.99248]
[1743008332317,3.08920361,2015.0,2014.9,0.7128]
[1743008333720,0.00744361,2015.0,2014.9,4.91308]
[1743008335116,0.00744361,2015.0,2014.9,6.28868]
[1743008335716,0.00744361,2015.0,2014.9,6.75895477]
[1743008336728,0.00744361,2015.0,2014.9,8.17895477]
[1743008336925,0.00744361,2015.0,2014.9,6.75895477]
[1743008337434,0.00744361,2015.0,2014.9,12.38895477]
[1743008337726,0.00744361,2015.0,2014.9,12.76094821]
[1743008337924,2.41206,2015.4,2015.3,0.99228]
[1743008338121,3.72446,2015.4,2015.3,0.99228]
[1743008338318,3.72446,2015.4,2015.2,8.6583]
[1743008338527,3.72446,2015.4,2015.3,2.42168]
[1743008338928,3.72446,2015.4,2015.3,1.4294]
[1743008340929,3.72446,2015.4,2015.3,2.42168]
[1743008342228,0.00744361,2015.6,2015.4,0.99219]
[1743008342425,1.2949,2015.5,2015.4,0.99219]
[1743008342826,9.48325,2015.5,2015.1,0.00744361]
[1743008343021,0.99233,2015.2,2015.1,0.00744361]
[1743008343620,2.28721,2015.3,2015.1,0.00744361]
[1743008343829,2.28721,2015.3,2015.2,0.99233]
[1743008344027,0.99233,2015.2,2015.1,0.99979361]
[1743008344342,2.30503,2015.2,2015.1,4.32179361]
[1743008344831,2.30503,2015.2,2015.1,3.32944361]
[1743008345031,2.30503,2015.2,2015.1,0.00744361]
[1743008347424,5.51283,2015.2,2015.1,0.00744361]
[1743008348132,0.99258,2014.7,2014.6,3.2078]
[1743008348631,0.99258,2014.7,2014.6,6.5298]
[1743008348832,3.87956,2014.8,2014.4,50.046]
[1743008349023,0.99268,2014.5,2014.4,50.046]
[1743008349425,2.39088,2014.5,2014.4,50.046]
[1743008349825,2.39088,2014.5,2014.4,51.03873]
[1743008350022,2.31855,2014.6,2014.5,0.99268]
[1743008350235,1.2887,2014.6,2014.5,4.32068]
[1743008350435,8.22724,2014.8,2014.7,0.99258]
[1743008350627,0.99252,2014.9,2014.8,0.99253]
[1743008350828,0.99253,2014.8,2014.7,4.20034]
[1743008351125,0.99253,2014.8,2014.7,7.53034]
[1743008351737,2.28122,2014.9,2014.8,0.99253]
[1743008353045,2.28121,2014.9,2014.8,0.99253]
[1743008353430,0.99253,2014.8,2014.7,7.53034]
[1743008353632,2.28953,2014.8,2014.7,7.53034]
[1743008355540,1.297,2014.8,2014.7,7.53034]
[1743008355840,2.28953,2014.8,2014.7,7.53034]
[1743008357739,1.297,2014.8,2014.7,7.53034]
[1743008357939,1.4047,2015.0,2014.8,0.99253]
[1743008357940,0.99248,2014.9,2014.8,0.99253]
[1743008358140,1.2881,2014.9,2014.8,2.37993]
[1743008358336,2.28058,2014.9,2014.8,3.72943]
[1743008358644,1.2881,2014.9,2014.8,3.72943]
[1743008359241,1.4047,2015.0,2014.9,0.99248]
[1743008359544,1.3486,2015.1,2015.0,0.99243]
[1743008359739,2.34098,2015.1,2015.0,0.99243]
[1743008360946,1.3486,2015.1,2015.0,0.99243]
[1743008361245,2.34098,2015.1,2015.0,0.99243]
[1743008363545,2.34098,2015.1,2014.7,3.2078]
[1743008363546,0.99253,2014.8,2014.7,3.2078]
[1743008363750,0.99263,2014.6,2014.5,5.72936]
[1743008363950,0.99268,2014.5,2014.4,54.24651]
[1743008364153,1.68308,2014.5,2014.4,56.5688]
[1743008364848,1.68308,2014.5,2014.4,57.56153]
[1743008365052,1.68308,2014.5,2014.4,50.046]
[1743008365443,3.07538,2014.5,2014.4,50.046]
[1743008367048,0.99273,2014.4,2014.3,1.3122]
[1743008367255,0.99283,2014.2,2014.1,6.5248]
[1743008367451,0.99283,2014.2,2014.1,8.83258]
[1743008367758,0.99297,2014.0,2013.9,4.31194]
[1743008367951,0.99297,2014.0,2013.9,1.3149]
[1743008368454,2.41257,2014.0,2013.9,2.30787]
[1743008370051,2.41257,2014.0,2013.9,1.3149]
[1743008377063,1.68021,2014.1,2013.9,1.3149]
[1743008377263,0.99291,2014.1,2014.0,0.99292]
[1743008377464,0.99291,2014.1,2014.0,1.70362]
[1743008377658,2.35436,2014.2,2014.1,0.99288]
[1743008377858,0.99283,2014.2,2014.1,1.9956]
[1743008378065,0.99283,2014.2,2014.1,6.29244]
[1743008378565,2.0545,2014.3,2014.1,6.29244]
[1743008378867,3.04728,2014.3,2014.2,1.3512]
[1743008379056,3.04728,2014.3,2014.2,2.34403]
[1743008379772,3.04728,2014.3,2014.2,1.3512]
[1743008380761,3.04728,2014.3,2014.2,2.34403]
[1743008381069,3.04728,2014.3,2014.2,1.3512]
[1743008381269,3.04728,2014.3,2014.2,2.34403]
[1743008381967,3.04728,2014.3,2014.2,1.3512]
[1743008382370,3.04728,2014.3,2014.2,2.34403]
[1743008384572,3.04728,2014.3,2014.2,1.3512]
[1743008387664,6.25508,2014.3,2014.2,1.3512]
[1743008390870,3.04728,2014.3,2014.2,1.3512]
[1743008391074,3.04728,2014.3,2014.2,2.34403]
[1743008391265,3.04728,2014.3,2014.2,1.3512]
[1743008391676,0.99277,2014.4,2014.2,1.3512]
[1743008391867,0.99272,2014.5,2014.4,0.99268]
[1743008393276,0.99283,2014.3,2014.2,0.99276]
[1743008394079,0.99274,2014.5,2014.4,0.99268]
[1743008394678,0.99274,2014.5,2014.4,1.66178]
[1743008394878,0.99274,2014.5,2014.4,4.86958]
[1743008395085,0.00744361,2014.6,2014.5,0.99268]
[1743008395273,10.4158,2015.2,2014.5,13.71]
[1743008395575,0.9924,2015.1,2015.0,0.99238]
[1743008395780,0.9924,2015.1,2015.0,4.28938]
[1743008395975,0.99237,2015.2,2015.1,0.99238]
[1743008396280,0.99237,2015.2,2015.1,4.20015]
[1743008396281,0.99233,2015.2,2015.1,4.20015]
[1743008396879,0.99243,2015.0,2014.9,42.47862361]
[1743008397075,0.99243,2015.0,2014.9,45.77662361]
[1743008398179,2.40663,2015.0,2014.9,45.77662361]
[1743008399075,2.40663,2015.0,2014.9,3.98414361]
[1743008399375,2.40663,2015.0,2014.9,0.00744361]
[1743008400577,3.9142,2015.0,2014.6,50.055]
[1743008400774,0.99257,2014.8,2014.7,0.99253]
[1743008401273,0.99258,2014.7,2014.6,54.25539]
[1743008401474,1.399,2015.1,2014.8,2.48131]
[1743008401669,0.99231,2015.3,2015.2,0.99228]
[1743008401866,0.99237,2015.2,2015.1,0.99233]
[1743008402071,0.99238,2015.1,2015.0,4.31242]
[1743008402479,1.67978,2015.1,2015.0,4.31242]
[1743008403082,0.99238,2015.1,2015.0,4.31242]
[1743008403383,0.99253,2014.8,2014.7,3.2078]
[1743008403680,0.99258,2014.7,2014.6,51.04758]
[1743008403882,3.08428,2014.7,2014.6,50.055]
[1743008404482,0.99268,2014.6,2014.5,0.99268]
[1743008404685,2.39698,2014.6,2014.5,0.99268]
[1743008405072,2.39698,2014.6,2014.5,2.32028]
[1743008405276,2.39698,2014.6,2014.5,1.3276]
[1743008405475,3.07908,2014.6,2014.5,2.32028]
[1743008405681,3.07903,2014.6,2014.5,2.32028]
[1743008405885,2.39693,2014.6,2014.5,2.32028]
[1743008406188,1.68001,2014.7,2014.6,0.99263]
[1743008406481,2.98341,2014.7,2014.6,2.32023]
[1743008407083,2.29601,2014.7,2014.6,2.32023]
[1743008407288,1.67466,2014.8,2014.7,0.99258]
[1743008407586,1.67466,2014.8,2014.7,2.32018]
[1743008407884,1.67466,2014.8,2014.7,1.3276]
[1743008408085,2.98116,2014.8,2014.7,1.3276]
[1743008408485,2.98116,2014.8,2014.7,2.32018]
[1743008408687,2.98116,2014.8,2014.7,1.3276]
[1743008409382,2.98116,2014.8,2014.7,2.32018]
[1743008410189,2.98116,2014.8,2014.7,1.3276]
[1743008410390,2.98116,2014.8,2014.4,3.17653]
[1743008410391,2.4815,2014.7,2014.4,0.6948]
[1743008410590,3.788,2014.7,2014.5,1.418]
[1743008410798,2.30473,2014.6,2014.5,1.418]
[1743008411189,0.99278,2014.3,2014.2,1.3299]
[1743008411496,0.99288,2014.2,2014.1,0.99285]
[1743008412483,0.99288,2014.2,2014.1,1.3307]
[1743008412685,0.99292,2014.0,2013.9,50.045]
[1743008412886,0.67194361,2014.4,2014.1,2.48212]
[1743008413179,0.00744361,2014.4,2014.3,0.99278]
[1743008413985,0.00744361,2014.4,2014.3,2.36308]
[1743008414789,1.00017361,2014.4,2014.3,1.3703]
[1743008414986,1.68717361,2014.4,2014.3,1.3703]
[1743008415494,1.68717361,2014.4,2014.3,2.36308]
[1743008415787,0.00744361,2014.4,2014.3,2.36308]
[1743008416384,1.00017361,2014.4,2014.3,2.36308]
[1743008416789,1.00017361,2014.4,2014.3,1.3703]
[1743008417190,0.99288,2014.2,2014.1,0.99288]
[1743008417887,0.99288,2014.1,2014.0,4.6809]
[1743008418092,0.99288,2014.2,2014.0,4.6809]
[1743008418292,0.99288,2014.1,2014.0,5.67377]
[1743008418493,2.32428,2014.1,2014.0,5.67377]
[1743008418692,2.32428,2014.1,2014.0,2.34377]
[1743008419000,1.3314,2014.1,2014.0,2.34377]
[1743008419196,2.32428,2014.1,2014.0,2.34377]
[1743008419592,2.32428,2014.1,2014.0,3.76207]
[1743008419989,0.99292,2014.0,2013.9,53.2528]
[1743008420192,2.98652,2014.0,2013.9,52.42287]
[1743008420397,1.9936,2014.0,2013.9,52.42287]
[1743008420593,0.99286,2014.2,2014.1,0.99284]
[1743008421288,5.54241,2014.3,2014.2,0.99283]
[1743008422696,0.00744361,2014.4,2014.3,0.99278]
[1743008422897,3.2078,2015.0,2014.8,0.99249]
[1743008423092,4.20023,2015.0,2014.9,1.3209]
[1743008423291,4.20023,2015.0,2014.9,2.31338]
[1743008423492,4.20023,2015.0,2014.9,1.3209]
[1743008423803,4.20023,2015.0,2014.9,2.31338]
[1743008424297,0.00744361,2015.2,2015.1,0.99238]
[1743008424505,0.00744361,2015.2,2015.1,7.54118]
[1743008424804,0.00744361,2015.2,2015.1,8.86208]
[1743008428087,0.00744361,2015.2,2015.1,11.63208]
[1743008428292,0.00744361,2015.2,2015.1,8.86208]
[1743008428600,0.00744361,2015.2,2015.1,8.94208]
[1743008429098,0.00744361,2015.2,2015.1,8.86208]
[1743008429899,0.9921,2015.7,2015.6,0.99209]
[1743008430202,3.08084,2015.9,2015.8,0.99204]
[1743008430804,0.99201,2015.9,2015.8,0.99204]
[1743008431192,1.4046,2016.0,2015.7,2.0556]
[1743008431496,0.99204,2015.8,2015.7,3.04765]
[1743008431705,1.4046,2016.0,2015.7,2.0556]
[1743008431893,0.99204,2015.8,2015.7,3.04764]
[1743008432399,0.99203,2015.9,2015.8,0.99203]
[1743008432706,0.99203,2015.9,2015.8,0.99204]
[1743008433002,0.99204,2015.8,2015.7,1.3964]
[1743008433198,2.37404,2015.8,2015.7,1.3964]
[1743008433594,2.37404,2015.8,2015.7,2.38849]
[1743008434003,2.37404,2015.8,2015.7,1.3964]
[1743008434196,3.21524361,2016.1,2015.7,1.3964]
[1743008434398,0.00744361,2016.1,2016.0,0.99194]
[1743008434703,0.00744361,2016.1,2016.0,5.69064]
[1743008434902,0.00744361,2016.1,2016.0,6.34764]
[1743008435102,0.99933361,2016.1,2016.0,6.34764]
[1743008436203,0.99933361,2016.1,2016.0,5.3557]
[1743008436701,2.34743361,2016.1,2016.0,5.3557]
[1743008437500,2.34743361,2016.1,2016.0,6.34764]
[1743008438503,1.35554361,2016.1,2016.0,6.34764]
[1743008438700,2.34743361,2016.1,2016.0,6.34764]
[1743008439000,2.34743361,2016.1,2016.0,5.3557]
[1743008439197,2.34743361,2016.1,2016.0,6.34764]
[1743008439398,0.00744361,2016.1,2016.0,6.34764]
[1743008441002,0.99933361,2016.1,2016.0,4.6987]
[1743008441296,0.00744361,2016.1,2016.0,2.35964]
[1743008441503,0.00744361,2016.1,2016.0,3.71614]
[1743008442196,0.00744361,2016.1,2016.0,4.08992864]
[1743008443705,0.00744361,2016.1,2016.0,9.09992864]
[1743008444197,0.00744361,2016.1,2016.0,8.72614]
[1743008444405,0.99933361,2016.1,2016.0,8.72614]
[1743008444602,0.00744361,2016.1,2016.0,8.72614]
[1743008444803,1.31764361,2016.1,2016.0,8.72614]
[1743008445403,0.00744361,2016.1,2016.0,8.72614]
[1743008447306,1.41314361,2016.1,2016.0,8.72614]
[1743008447499,1.41314361,2016.1,2016.0,7.36964]
[1743008447700,0.00744361,2016.1,2016.0,7.36964]
[1743008448710,1.41314361,2016.1,2016.0,7.36964]
[1743008449104,2.40503361,2016.1,2016.0,7.36964]
[1743008449304,2.09044361,2016.1,2016.0,7.36964]
[1743008449905,0.00744361,2016.1,2016.0,7.36964]
[1743008450098,0.6773,2016.4,2016.3,0.99179]
[1743008450812,2.098,2016.4,2016.3,2.27889]
[1743008451202,1.4207,2016.4,2016.3,2.27889]
[1743008451403,0.00744361,2016.6,2016.5,0.99169]
[1743008451604,0.00744361,2016.6,2016.5,8.18619]
[1743008451801,0.00744361,2016.6,2016.5,9.47329]
[1743008452602,0.00744361,2016.6,2016.5,9.90191163]
[1743008453416,3.0483,2016.9,2016.8,0.99155]
[1743008453812,2.0568,2016.9,2016.8,4.30955]
[1743008454014,3.0483,2016.9,2016.8,4.30955]
[1743008454607,2.0568,2016.9,2016.8,4.30955]
[1743008455011,3.0483,2016.9,2016.8,4.30955]
[1743008455211,2.0568,2016.9,2016.8,4.30955]
[1743008455413,2.0568,2016.9,2016.8,4.30855]
[1743008455718,1.347,2016.9,2016.8,4.30855]
[1743008455904,0.00744361,2017.1,2017.0,0.99145]
[1743008456112,1.35444361,2017.1,2017.0,0.99145]
[1743008457515,0.00744361,2017.1,2017.0,2.28185]
[1743008459223,2.35758361,2017.1,2016.9,4.6227]
[1743008459405,2.38325,2017.0,2016.9,5.6142]
[1743008460219,0.9915,2016.9,2016.8,0.00744361]
[1743008460427,3.0609,2016.9,2016.8,0.00744361]
[1743008461107,6.2687,2016.9,2016.8,0.00744361]
[1743008461308,0.99164,2016.6,2016.5,1.3176]
[1743008461515,0.99163,2016.7,2016.6,0.99164]
[1743008461722,3.03403,2016.7,2016.6,0.99164]
[1743008462819,0.99164,2016.6,2016.5,2.30926]
[1743008463121,2.36774,2016.6,2016.5,2.30929]
[1743008463516,1.3761,2016.6,2016.5,2.30929]
[1743008463715,2.36774,2016.6,2016.5,2.30929]
[1743008463915,1.3761,2016.6,2016.5,2.30929]
[1743008464421,2.36774,2016.6,2016.5,1.3176]
[1743008465725,5.57554,2016.6,2016.5,1.3176]
[1743008465926,0.99169,2016.5,2016.4,0.00744361]
[1743008466129,0.99189,2016.1,2016.0,51.3443]
[1743008466429,0.99189,2016.1,2016.0,52.33624]
[1743008466614,0.99189,2016.1,2016.0,51.3443]
[1743008466926,2.47975,2016.1,2015.8,0.99204]
[1743008467125,2.0995,2016.2,2015.8,1.35874361]
[1743008467126,2.1134,2016.0,2015.8,1.35874361]
[1743008467331,0.6791,2016.2,2015.8,1.35874361]
[1743008467629,2.41231,2016.1,2016.0,0.99192]
[1743008467827,0.99194,2016.0,2015.9,0.99196]
[1743008468028,0.99199,2015.9,2015.8,2.35075361]
[1743008468228,0.99199,2015.9,2015.8,0.00744361]
[1743008469519,1.70409,2015.9,2015.8,0.00744361]
[1743008470629,0.99223,2015.4,2015.3,49.994]
[1743008471732,2.40023,2015.4,2015.3,49.994]
[1743008471934,0.99233,2015.2,2015.1,1.36974361]
[1743008472330,0.99231,2015.3,2015.1,1.36974361]
[1743008472531,1.408,2015.3,2015.2,0.99233]
[1743008472830,1.70429,2015.5,2015.3,0.99224]
[1743008473129,0.99223,2015.4,2015.3,2.30224]
[1743008473332,1.70432,2015.5,2015.3,2.30224]
[1743008473528,3.11232,2015.5,2015.4,2.30223]
[1743008473728,3.11232,2015.5,2015.4,1.31]
[1743008473925,1.408,2015.5,2015.4,2.30223]
[1743008474129,4.19998,2015.6,2015.4,2.3022]
[1743008474334,4.19998,2015.6,2015.5,0.99219]
[1743008474535,4.19998,2015.6,2015.5,1.31]
[1743008474735,2.40013,2015.7,2015.6,0.99214]
[1743008475031,0.6474,2015.8,2015.7,0.99209]
[1743008475226,1.63947,2015.8,2015.7,0.99209]
[1743008475530,1.9643,2015.8,2015.7,0.99209]
[1743008475738,0.99196,2016.0,2015.9,0.99194]
[1743008475939,1.3169,2016.0,2015.9,0.99194]
[1743008476233,1.3169,2016.0,2015.9,41.79194]
[1743008476434,0.00744361,2016.1,2016.0,0.99194]
[1743008476635,1.32434361,2016.1,2016.0,2.32514]
[1743008477535,2.31623361,2016.1,2016.0,2.32514]
[1743008478339,0.99206,2015.8,2015.7,4.33204]
[1743008478539,0.99206,2015.8,2015.7,4.6566]
[1743008478740,0.99209,2015.7,2015.6,0.99212]
[1743008479039,0.99214,2015.6,2015.5,4.6556]
[1743008479244,2.40544,2015.6,2015.5,3.339]
[1743008479534,1.4133,2015.6,2015.5,4.33119]
[1743008479737,2.40544,2015.6,2015.5,3.339]
[1743008479936,0.99219,2015.5,2015.4,50.011]
[1743008480131,2.40549,2015.5,2015.4,51.00323]
[1743008480333,1.4133,2015.5,2015.4,51.00323]
[1743008480539,2.1223,2015.7,2015.4,50.011]
[1743008480752,3.1144,2015.7,2015.6,0.99214]
[1743008481238,2.1223,2015.7,2015.6,0.99214]
[1743008481438,3.11439,2015.7,2015.6,0.99214]
[1743008481637,2.1223,2015.7,2015.6,0.99214]
[1743008481941,0.99203,2015.9,2015.8,0.99204]
[1743008482340,2.29343,2015.9,2015.8,0.99204]
[1743008482532,1.3014,2015.9,2015.8,0.99204]
[1743008484044,2.29339,2015.9,2015.8,0.99204]
[1743008484244,1.3014,2015.9,2015.8,0.99204]
[1743008484641,0.688,2016.0,2015.9,0.99199]
[1743008484947,3.10655361,2016.1,2016.0,0.99194]
[1743008485639,2.11464361,2016.1,2016.0,0.99194]
[1743008485844,1.43264361,2016.1,2016.0,0.99194]
[1743008486036,0.00744361,2016.1,2016.0,0.99194]
[1743008486336,0.00744361,2016.1,2016.0,4.84764]
[1743008488946,0.00744361,2016.1,2016.0,6.27764]
[1743008489342,0.00744361,2016.1,2016.0,4.84764]
[1743008489555,0.00744361,2016.1,2016.0,9.06764]
[1743008490556,0.00744361,2016.1,2016.0,8.18364]
[1743008490761,0.00744361,2016.1,2016.0,1.63984]
[1743008490953,0.00744361,2016.1,2016.0,4.97784]
[1743008491152,1.43714361,2016.1,2016.0,4.97784]
[1743008491458,0.00744361,2016.1,2016.0,4.84764]
[1743008491659,0.00744361,2016.1,2016.0,8.18464]
[1743008492550,0.00744361,2016.1,2016.0,9.44464]
[1743008493256,2.42139,2016.5,2016.4,0.99174]
[1743008493454,2.42139,2016.5,2016.4,3.338]
[1743008493856,2.42139,2016.5,2016.4,4.32974]
[1743008496145,1.4297,2016.5,2016.4,4.32974]
[1743008496853,1.4297,2016.5,2016.4,5.69364]
[1743008497253,1.3767,2016.6,2016.5,0.99169]
[1743008497555,2.7946,2016.6,2016.5,2.35559]
[1743008498854,0.99908361,2016.7,2016.6,0.99164]
[1743008498855,0.00744361,2016.7,2016.6,0.99164]
[1743008499159,0.00744361,2016.7,2016.6,6.23594]
[1743008503157,0.99904361,2016.7,2016.6,5.56334]
[1743008503362,0.99904361,2016.7,2016.6,1.3639]
[1743008503564,0.99169,2016.6,2016.4,4.6988]
[1743008503766,1.3357,2016.5,2016.4,4.6988]
[1743008503963,1.3357,2016.5,2016.4,5.69051]
[1743008505666,1.3163,2016.6,2016.5,0.99169]
[1743008505867,1.3163,2016.6,2016.5,2.33619]
[1743008506171,2.6407,2016.6,2016.5,2.33619]
[1743008506669,0.00744361,2016.7,2016.6,0.99164]
[1743008506970,0.00744361,2016.7,2016.6,2.33614]
[1743008507163,0.00744361,2016.7,2016.6,5.54394]
[1743008507666,0.00744361,2016.7,2016.6,10.67394]
[1743008508255,3.2078,2017.5,2016.6,9.6823]
[1743008508467,1.9964,2017.2,2017.1,0.99136]
[1743008509368,0.9914,2017.1,2017.0,4.7577]
[1743008509567,0.9914,2017.1,2017.0,3.339]
[1743008509568,2.2999,2017.1,2017.0,3.339]
[1743008510367,2.2999,2017.1,2017.0,4.33045]
[1743008510674,1.3085,2017.1,2016.6,5.68681]
[1743008510875,0.99151,2016.9,2016.8,5.7462]
[1743008511370,2.30001,2016.9,2016.8,5.7462]
[1743008511761,1.3085,2016.9,2016.8,5.7462]
[1743008514175,0.6991,2017.0,2016.9,0.9915]
[1743008514475,1.69055,2017.0,2016.9,1.3583]
[1743008514676,0.6991,2017.0,2016.7,0.9916]
[1743008514975,2.30534,2016.9,2016.8,0.99155]
[1743008515175,0.99155,2016.8,2016.7,2.40545]
[1743008515364,2.97525,2016.8,2016.7,5.73645]
[1743008515871,1.9837,2016.8,2016.7,5.73645]
[1743008517660,2.97525,2016.8,2016.7,5.73645]
[1743008517867,2.97525,2016.8,2016.7,0.99155]
[1743008518372,2.97528,2016.8,2016.7,0.9916]
[1743008518570,2.97528,2016.8,2016.6,1.3418]
[1743008518571,1.9837,2016.8,2016.6,1.3418]
[1743008518774,1.319,2016.7,2016.6,1.3418]
[1743008518975,1.319,2016.7,2016.4,3.84021]
[1743008518976,1.319,2016.7,2016.4,1.3609]
[1743008519275,0.99179,2016.3,2016.0,3.2078]
[1743008519474,0.99179,2016.3,2016.2,0.99928361]
[1743008519681,0.99179,2016.3,2016.2,0.00744361]
[1743008519876,2.47958,2016.3,2015.9,0.99196]
[1743008520173,4.5268,2016.2,2015.7,7.02982]
[1743008520383,0.99195,2016.0,2015.9,0.99197]
[1743008520683,0.99194,2016.0,2015.9,0.99197]
[1743008520884,0.99199,2015.9,2015.8,1.3418]
[1743008521178,0.6609,2015.9,2015.8,2.33384]
[1743008521581,1.65289,2015.9,2015.8,1.3418]
[1743008521784,1.65289,2015.9,2015.8,2.33384]
[1743008522576,0.6609,2015.9,2015.8,2.33384]
[1743008523387,1.65289,2015.9,2015.8,1.3418]
[1743008523570,2.96029,2015.9,2015.8,1.3418]
[1743008523769,2.96029,2015.9,2015.8,2.33384]
[1743008524486,0.99204,2015.8,2015.7,0.00744361]
[1743008524681,0.99204,2015.8,2015.2,2.48073]
[1743008524682,0.99233,2015.2,2015.1,3.2078]
[1743008524883,2.48051,2015.5,2014.7,9.43438453]
[1743008524884,0.99243,2015.1,2014.8,9.2772]
[1743008525180,0.99243,2015.0,2014.9,2.39304]
[1743008525384,0.99243,2015.0,2014.9,1.4006]
[1743008525586,0.99257,2014.8,2014.6,0.99262]
[1743008525785,0.99257,2014.8,2014.6,2.39322]
[1743008525987,1.4229,2014.7,2014.6,2.39322]
[1743008526178,1.4229,2014.7,2014.6,0.99262]
[1743008526373,2.41548,2014.7,2014.6,0.99262]
[1743008526579,1.4229,2014.7,2014.6,0.99262]
[1743008527087,0.99263,2014.6,2014.5,0.00744361]
[1743008527387,1.4229,2014.7,2014.1,0.99286]
[1743008527388,0.9928,2014.3,2014.1,0.99286]
[1743008528684,0.99288,2014.1,2013.9,45.64825]
[1743008529785,1.4038,2014.2,2013.9,44.6553]
[1743008529990,2.39664,2014.2,2014.0,0.9929]
[1743008530180,0.99288,2014.1,2013.9,45.64824]
[1743008530690,1.4038,2014.2,2014.0,0.99292]
[1743008530887,2.39664,2014.2,2014.0,0.99292]
[1743008531085,1.4038,2014.2,2014.0,0.99292]
[1743008531281,9.0378,2014.6,2013.9,47.1377]
[1743008531484,0.99275,2014.4,2014.2,4.2006]
[1743008531987,2.41539,2014.5,2014.4,0.99273]
[1743008532189,1.4227,2014.5,2014.3,0.99276]
[1743008532690,0.99278,2014.3,2014.2,4.2006]
[1743008532894,1.4227,2014.5,2014.2,4.2006]
[1743008533079,0.99273,2014.4,2014.2,4.2006]
[1743008533282,1.4227,2014.5,2014.2,3.2078]
[1743008533479,1.63892,2014.7,2014.2,3.2078]
[1743008533689,1.3271,2014.7,2014.6,0.99263]
[1743008533894,0.00744361,2014.9,2014.5,3.2078]
[1743008534389,0.00744361,2014.9,2014.8,0.99253]
[1743008534589,0.00744361,2014.9,2014.8,4.20033]
[1743008534997,0.00744361,2014.9,2014.8,4.89993]
[1743008536696,1.43204361,2014.9,2014.8,4.89993]
[1743008537093,0.00744361,2014.9,2014.8,4.89993]
[1743008537996,0.99992361,2014.9,2014.8,4.20033]
[1743008539296,0.99992361,2014.9,2014.8,0.99253]
[1743008540500,0.00744361,2014.9,2014.8,0.99253]
[1743008541793,0.99253,2014.8,2014.7,4.34456]
[1743008542095,1.3966,2014.8,2014.7,4.34456]
[1743008542299,2.38913,2014.8,2014.7,0.99256]
[1743008542497,1.3966,2014.8,2014.7,0.99256]
[1743008543102,2.38913,2014.8,2014.7,0.99256]
[1743008543304,0.00744361,2014.9,2014.8,0.99253]
[1743008543796,0.99992361,2014.9,2014.8,0.99253]
[1743008544399,0.00744361,2014.9,2014.8,0.99253]
[1743008545702,0.99226,2015.4,2015.3,0.99225]